bitfinex/quotes_SOLUSD_20251228
["timestamp","ask_amount","ask_price","bid_price","bid_amount"]
[1766938691287,0.71,124.65,124.62,8.02439415]
[1766938693711,0.71,124.65,124.61,20.06243478]
[1766938693904,0.71,124.65,124.62,14.66]
[1766938695805,0.71,124.65,124.62,22.68375196]
[1766938696312,0.2,124.66,124.62,22.68375196]
[1766938696524,0.2,124.66,124.62,8.02375196]
[1766938696525,0.85,124.66,124.62,8.02375196]
[1766938696701,0.85,124.66,124.62,22.68375196]
[1766938699412,0.2,124.66,124.62,42.74473735]
[1766938700426,0.85,124.66,124.62,42.74473735]
[1766938701524,0.2,124.67,124.62,42.74473735]
[1766938701705,0.2,124.67,124.62,28.08473735]
[1766938702024,0.2,124.67,124.63,14.66]
[1766938703423,0.2,124.67,124.64,8.02310654]
[1766938711631,0.65,124.68,124.64,28.0808729]
[1766938735251,113.53767296,124.74,124.65,0.65]
[1766938735555,113.53767296,124.74,124.66,14.66]
[1766938737354,0.69,124.73,124.67,8.0211759]
[1766938743166,0.69,124.73,124.67,8.6711759]
[1766938745677,0.69,124.73,124.67,8.0211759]
[1766938748075,0.69,124.74,124.67,28.07411566]
[1766938748261,0.69,124.74,124.69,0.65]
[1766938748460,0.69,124.74,124.7,0.65]
[1766938748753,0.2,124.76,124.71,14.66]
[1766938748967,0.2,124.76,124.73,0.68]
[1766938749173,0.2,124.78,124.75,0.68]
[1766938749471,1e-08,124.78,124.75,0.68]
[1766938750062,1e-08,124.78,124.76,8.01538954]
[1766938750359,1e-08,124.78,124.77,0.68]
[1766938750945,1e-08,124.78,124.76,8.01538954]
[1766938751149,0.69000001,124.78,124.75,0.68]
[1766938751452,0.69000001,124.78,124.73,15.34]
[1766938751774,0.69000001,124.78,124.74,8.69643936]
[1766938754586,0.69000001,124.78,124.74,0.68]
[1766938756083,0.69000001,124.78,124.74,8.01609466]
[1766938756266,0.69000001,124.78,124.75,0.66]
[1766938757965,1e-08,124.78,124.77,0.66]
[1766938758164,1e-08,124.78,124.77,8.67474713]
[1766938759174,1e-08,124.78,124.76,9.47670879]
[1766938759488,0.66000001,124.78,124.74,8.0162734]
[1766938759684,0.66000001,124.78,124.75,0.66]
[1766938760068,0.66000001,124.78,124.75,8.67566199]
[1766938760591,0.66000001,124.78,124.75,8.01566199]
[1766938762183,0.66000001,124.78,124.75,8.67566199]
[1766938770402,0.66000001,124.78,124.74,28.05750845]
[1766938770711,0.66000001,124.78,124.74,28.71750845]
[1766938770898,0.66000001,124.78,124.73,8.01707116]
[1766938771077,0.66000001,124.78,124.72,0.66]
[1766938771276,0.66000001,124.78,124.72,8.67758725]
[1766938772179,0.66000001,124.78,124.72,0.66]
[1766938772897,0.66000001,124.78,124.7,23.31911083]
[1766938773097,0.66,124.77,124.7,23.31911083]
[1766938773607,0.66,124.77,124.71,0.66]
[1766938774314,15.3,124.77,124.68,0.66]
[1766938774477,0.66,124.76,124.69,0.66]
[1766938776601,0.66,124.76,124.7,8.67924619]
[1766938777702,0.66,124.76,124.69,8.67959937]
[1766938778709,0.66,124.76,124.68,28.07073778]
[1766938778904,0.66,124.76,124.69,0.66]
[1766938779413,0.66,124.75,124.68,8.68053256]
[1766938779584,0.66,124.75,124.68,0.66]
[1766938780597,0.66,124.74,124.68,0.66]
[1766938782728,0.66,124.74,124.69,8.67938907]
[1766938782901,0.66,124.74,124.7,0.66]
[1766938785316,0.66,124.74,124.69,8.69938907]
[1766938791736,0.66,124.74,124.69,0.7]
[1766938794140,0.66,124.74,124.69,8.71974934]
[1766938794523,0.66,124.74,124.7,0.7]
[1766938796444,0.66,124.74,124.68,8.02053256]
[1766938796938,0.66,124.74,124.69,0.7]
[1766938797740,0.66,124.74,124.69,8.71971698]
[1766938798550,0.66,124.74,124.7,0.7]
[1766938801138,103.1,124.75,124.71,0.7]
[1766938801836,0.67,124.74,124.71,0.7]
[1766938803734,0.67,124.76,124.72,0.7]
[1766938817857,0.67,124.76,124.69,14.66]
[1766938818057,0.67,124.76,124.7,0.69]
[1766938824080,0.67,124.75,124.67,0.69]
[1766938824271,0.67,124.73,124.67,0.69]
[1766938826464,0.67,124.73,124.68,0.69]
[1766938827283,103.77,124.74,124.68,0.69]
[1766938827976,0.67,124.73,124.69,8.01988932]
[1766938828162,0.67,124.73,124.7,0.69]
[1766938837895,0.67,124.76,124.7,0.69]
[1766938847087,0.67,124.76,124.71,0.68]
[1766938849093,0.67,124.76,124.71,8.0179816]
[1766938849397,0.67,124.76,124.72,0.68]
[1766938849694,1e-08,124.78,124.72,0.68]
[1766938849894,0.69000001,124.78,124.72,0.68]
[1766938851206,0.69000001,124.78,124.73,0.66]
[1766938862013,0.7,124.77,124.71,0.66]
[1766938866510,103.8,124.77,124.71,0.66]
[1766938867112,103.1,124.77,124.71,0.66]
[1766938867288,0.7,124.76,124.71,0.66]
[1766938880515,0.7,124.76,124.72,0.68]
[1766938890126,0.7,124.76,124.7,0.68]
[1766938890302,0.69,124.75,124.7,0.68]
[1766938912062,0.66,124.75,124.65,0.80224628]
[1766938912228,0.66,124.75,124.69,0.72]
[1766938912229,0.66,124.74,124.69,0.72]
[1766938920331,0.66,124.74,124.7,0.72]
[1766938928259,0.66,124.76,124.71,0.72]
[1766938935159,0.66,124.76,124.71,8.01856535]
[1766938935341,0.7,124.76,124.72,0.66]
[1766938949769,0.7,124.76,124.71,0.66]
[1766938951055,0.7,124.76,124.69,0.66]
[1766938951056,0.7,124.75,124.69,0.66]
[1766938951256,0.7,124.73,124.66,14.66]
[1766938951462,0.7,124.73,124.67,0.66]
[1766938951862,0.7,124.73,124.65,8.68216007]
[1766938952080,0.7,124.73,124.66,8.68173689]
[1766938952269,0.7,124.73,124.68,0.66]
[1766938961992,0.7,124.73,124.68,8.02028926]
[1766938962172,0.7,124.73,124.69,0.66]
[1766938966990,0.7,124.73,124.69,8.67977475]
[1766938967294,0.7,124.73,124.7,0.66]
[1766938986994,0.7,124.73,124.69,8.7197293]
[1766938987508,0.7,124.73,124.66,0.7]
[1766938987712,0.7,124.73,124.67,0.7]
[1766938989717,0.7,124.73,124.68,0.7]
[1766938990704,0.7,124.73,124.66,8.02150352]
[1766938990893,0.69,124.71,124.64,0.7]
[1766938992213,0.69,124.71,124.63,0.7]
[1766938992408,0.69,124.69,124.64,0.7]
[1766938992592,0.69,124.68,124.64,0.7]
[1766938993707,0.69,124.68,124.65,0.7]
[1766938993897,0.69,124.69,124.65,0.7]
[1766939012317,0.69,124.69,124.63,8.02352818]
[1766939012510,0.69,124.69,124.64,0.68]
[1766939016224,0.69,124.69,124.61,14.76]
[1766939016225,0.7,124.68,124.61,0.1]
[1766939016427,0.7,124.66,124.61,0.78]
[1766939019012,0.7,124.66,124.61,0.1]
[1766939022036,0.7,124.66,124.61,0.79]
[1766939022734,0.7,124.65,124.61,0.1]
[1766939023523,14.66,124.64,124.61,0.1]
[1766939023824,0.7,124.63,124.61,0.1]
[1766939028051,0.7,124.63,124.61,0.77]
[1766939028546,0.7,124.63,124.61,0.1]
[1766939030842,117.76,124.64,124.62,0.67]
[1766939031050,103.1,124.64,124.62,0.67]
[1766939031353,0.68,124.65,124.62,0.67]
[1766939031549,0.68,124.66,124.62,0.67]
[1766939061265,0.68,124.66,124.61,0.1]
[1766939062375,0.68,124.65,124.61,0.1]
[1766939062581,0.68,124.63,124.61,0.1]
[1766939067503,103.1,124.63,124.59,0.1]
[1766939067785,0.68,124.61,124.58,0.1]
[1766939067966,0.68,124.6,124.58,0.1]
[1766939068286,0.68,124.6,124.57,0.1]
[1766939068789,0.68,124.6,124.56,0.1]
[1766939069160,8.025775,124.6,124.56,0.1]
[1766939069365,0.68,124.59,124.55,0.1]
[1766939069581,0.68,124.57,124.55,0.1]
[1766939074288,0.68,124.57,124.54,0.1]
[1766939077991,0.68,124.55,124.52,0.76]
[1766939078192,0.68,124.55,124.52,0.1]
[1766939079092,15.36,124.55,124.52,0.1]
[1766939080802,15.36,124.55,124.52,0.76]
[1766939083299,14.68,124.55,124.52,0.76]
[1766939083589,14.68,124.55,124.51,0.1]
[1766939083590,0.68,124.54,124.51,0.1]
[1766939085000,0.68,124.53,124.51,0.1]
[1766939085491,14.68,124.52,124.51,0.1]
[1766939085695,0.71,124.51,124.5,0.1]
[1766939086073,0.71,124.51,124.48,0.1]
[1766939095819,8.03150865,124.51,124.48,0.1]
[1766939095990,0.66,124.5,124.48,0.1]
[1766939096302,15.34,124.49,124.48,0.1]
[1766939097409,14.68,124.49,124.48,0.1]
[1766939098394,15.34,124.49,124.48,0.1]
[1766939098707,103.1,124.5,124.48,0.76]
[1766939098912,117.78,124.5,124.48,0.76]
[1766939099609,118.44,124.5,124.48,0.76]
[1766939099915,118.44,124.5,124.48,0.1]
[1766939101084,0.66,124.49,124.48,0.1]
[1766939103393,0.66,124.49,124.46,0.66]
[1766939104306,126.47212983,124.5,124.46,0.66]
[1766939104514,0.66,124.49,124.46,0.66]
[1766939106216,103.1,124.5,124.46,0.66]
[1766939106393,117.78,124.5,124.46,0.66]
[1766939109422,118.44,124.5,124.46,0.66]
[1766939109817,117.78,124.5,124.46,0.66]
[1766939111409,118.44,124.5,124.46,0.66]
[1766939112700,117.78,124.5,124.46,0.66]
[1766939114425,118.44,124.5,124.46,0.66]
[1766939114625,117.78,124.5,124.46,0.66]
[1766939114830,0.66,124.49,124.46,0.66]
[1766939116230,0.66,124.49,124.43,0.68]
[1766939116430,0.66,124.48,124.43,0.68]
[1766939117413,15.34,124.47,124.43,0.68]
[1766939118431,15.34,124.47,124.41,3.29041382]
[1766939118432,0.66,124.46,124.41,3.29041382]
[1766939118938,0.66,124.46,124.39,0.1]
[1766939118939,24.46162388,124.45,124.39,0.1]
[1766939119235,24.46162388,124.45,124.28,4.19633151]
[1766939119236,5.38385519,124.39,124.33,0.68]
[1766939119435,20.06385519,124.39,124.33,0.68]
[1766939120013,4.72385519,124.39,124.33,0.68]
[1766939120218,4.72385519,124.39,124.32,19.33273012]
[1766939121310,5.44385519,124.39,124.32,8.04329309]
[1766939121625,0.72,124.38,124.32,8.04329309]
[1766939122223,0.72,124.38,124.32,0.68]
[1766939123241,15.4,124.37,124.32,0.68]
[1766939123913,108.54385519,124.39,124.32,0.68]
[1766939124312,0.72,124.38,124.33,0.68]
[1766939124747,0.72,124.38,124.3,0.68]
[1766939124748,0.72,124.37,124.3,0.68]
[1766939124912,14.68,124.37,124.3,0.68]
[1766939125113,0.72,124.36,124.3,0.68]
[1766939125610,0.72,124.36,124.29,0.68]
[1766939126422,0.72,124.35,124.29,0.68]
[1766939128217,0.72,124.35,124.3,0.68]
[1766939129549,0.72,124.34,124.3,0.68]
[1766939130732,103.1,124.37,124.31,0.68]
[1766939130937,117.8,124.37,124.31,0.68]
[1766939131138,0.72,124.36,124.31,0.68]
[1766939131327,117.8,124.37,124.32,0.68]
[1766939131528,118.52,124.37,124.32,0.68]
[1766939132455,0.72,124.36,124.32,0.68]
[1766939133949,103.82,124.37,124.32,0.68]
[1766939134446,103.1,124.37,124.32,8.04341344]
[1766939134643,5.44385519,124.39,124.33,0.68]
[1766939135032,4.72385519,124.39,124.34,0.68]
[1766939136451,5.44385519,124.39,124.35,0.68]
[1766939138952,4.72385519,124.39,124.35,0.68]
[1766939139742,3.17385519,124.39,124.35,8.0418083]
[1766939140134,3.89385519,124.39,124.35,8.0418083]
[1766939140837,3.89385519,124.39,124.34,8.04246421]
[1766939141443,3.17385519,124.39,124.3,11.24217818]
[1766939141650,0.72,124.38,124.33,8.04294213]
[1766939141867,0.72,124.38,124.32,8.04349244]
[1766939142163,0.72,124.38,124.31,8.04422516]
[1766939142658,0.72,124.37,124.31,8.04422516]
[1766939142964,0.72,124.37,124.3,8.04505229]
[1766939147359,103.81,124.38,124.3,28.15768302]
[1766939148154,103.1,124.38,124.3,28.15768302]
[1766939148456,0.71,124.37,124.31,14.7]
[1766939148961,0.71,124.37,124.3,28.15768302]
[1766939149143,0.71,124.37,124.3,42.85768302]
[1766939151565,0.71,124.37,124.28,68.3918649]
[1766939151866,0.71,124.37,124.29,14.2]
[1766939153670,0.71,124.37,124.3,8.04505229]
[1766939153849,0.71,124.37,124.3,28.15768302]
[1766939156555,0.71,124.37,124.3,14.7]
[1766939157954,103.81,124.38,124.3,14.7]
[1766939158972,103.81,124.38,124.31,28.1554179]
[1766939159173,103.81,124.38,124.32,14.7]
[1766939159974,103.1,124.38,124.32,14.7]
[1766939160160,103.1,124.38,124.33,28.15088875]
[1766939160354,3.88385519,124.39,124.33,28.15088875]
[1766939160856,3.17385519,124.39,124.33,28.15088875]
[1766939161066,0.71,124.38,124.33,8.04311107]
[1766939161663,3.17385519,124.39,124.33,8.04311107]
[1766939161861,3.17385519,124.39,124.34,0.80424642]
[1766939162188,3.17385519,124.39,124.35,42.84636107]
[1766939162970,0.71,124.42,124.36,14.7]
[1766939163755,0.71,124.46,124.36,14.7]
[1766939164270,0.71,124.46,124.37,28.14183484]
[1766939164875,0.66978,124.46,124.39,0.05]
[1766939165750,0.66978,124.46,124.41,0.05]
[1766939165955,103.1,124.47,124.43,0.05]
[1766939166166,131.21058115,124.51,124.4,14.75]
[1766939166382,103.1,124.5,124.4,14.75]
[1766939166682,14.7,124.49,124.4,14.75]
[1766939166889,0.71,124.48,124.41,0.05]
[1766939177380,0.71,124.47,124.4,22.73811172]
[1766939177894,0.71,124.47,124.4,22.78811172]
[1766939178299,0.71,124.47,124.4,22.73811172]
[1766939178592,0.71,124.47,124.41,0.05]
[1766939179394,0.71,124.47,124.39,0.05]
[1766939179777,0.71,124.46,124.39,0.05]
[1766939180099,0.71,124.46,124.39,8.08918701]
[1766939180283,0.71,124.46,124.4,0.05]
[1766939183101,0.71,124.48,124.41,0.05]
[1766939183282,0.71,124.48,124.43,0.05]
[1766939183790,0.71,124.48,124.43,14.68]
[1766939183992,0.71,124.48,124.44,0.05]
[1766939184387,0.71,124.48,124.44,8.08600128]
[1766939184597,103.81,124.5,124.45,0.05]
[1766939184778,0.71,124.5,124.45,0.05]
[1766939185791,0.71,124.5,124.46,0.05]
[1766939189107,1e-08,124.52,124.45,83.78346701]
[1766939189310,1e-08,124.52,124.47,0.80340644]
[1766939189686,0.71000001,124.52,124.47,0.80340644]
[1766939189891,0.71000001,124.52,124.47,14.68]
[1766939190098,0.71000001,124.52,124.45,28.12315364]
[1766939190302,0.71000001,124.52,124.46,14.68]
[1766939192789,0.71000001,124.52,124.47,8.03406443]
[1766939195018,0.71000001,124.52,124.44,20.89310208]
[1766939195196,0.71000001,124.52,124.45,8.03499275]
[1766939197493,0.71,124.51,124.44,8.03571854]
[1766939199031,0.71,124.51,124.45,14.68]
[1766939200928,0.71,124.51,124.46,8.03470994]
[1766939201116,0.71,124.51,124.44,22.7159001]
[1766939202009,0.71,124.51,124.44,8.0359001]
[1766939202208,0.71,124.51,124.45,8.03491523]
[1766939203128,0.71,124.51,124.44,28.12545433]
[1766939205535,0.71,124.51,124.44,42.80545433]
[1766939210129,0.71,124.51,124.45,0.80353555]
[1766939210729,1e-08,124.52,124.45,0.80353555]
[1766939210933,0.71000001,124.52,124.46,8.03470994]
[1766939211237,0.71000001,124.52,124.47,14.68]
[1766939213137,0.71000001,124.52,124.47,22.71346496]
[1766939215922,0.71000001,124.52,124.46,8.0345617]
[1766939220042,0.71000001,124.52,124.45,22.71503623]
[1766939221947,0.71000001,124.52,124.45,42.80342514]
[1766939227248,0.71000001,124.52,124.45,22.71503623]
[1766939228249,0.65,124.51,124.45,22.71503623]
[1766939232756,0.65,124.51,124.44,8.03571581]
[1766939233053,0.65,124.5,124.42,8.03670322]
[1766939233255,0.65,124.49,124.42,8.03670322]
[1766939240954,0.72,124.48,124.42,8.03670322]
[1766939242864,0.72,124.48,124.41,22.71763299]
[1766939243163,0.72,124.48,124.41,8.03763299]
[1766939245470,0.72,124.48,124.4,8.0385852]
[1766939258080,0.72,124.48,124.4,28.13504822]
[1766939261659,0.72,124.48,124.41,14.68]
[1766939263475,0.72,124.48,124.4,28.93890674]
[1766939263659,0.72,124.48,124.41,14.68]
[1766939268088,0.72,124.48,124.42,8.03729303]
[1766939268473,0.72,124.48,124.42,28.13052562]
[1766939273991,14.68,124.48,124.41,8.84148944]
[1766939274191,0.69,124.47,124.4,8.03814876]
[1766939276074,0.69,124.47,124.39,28.13607149]
[1766939281906,0.68,124.46,124.39,8.03923144]
[1766939283484,0.68,124.45,124.38,22.71959726]
[1766939284085,0.68,124.45,124.38,8.03959726]
[1766939286307,0.68,124.44,124.38,8.03959726]
[1766939286493,0.68,124.44,124.38,28.13929174]
[1766939298791,0.68,124.44,124.37,8.04020587]
[1766939300294,0.68,124.44,124.37,28.94556889]
[1766939311333,0.68,124.44,124.37,28.14151647]
[1766939311623,0.68,124.44,124.37,8.04020587]
[1766939311821,0.66,124.43,124.37,8.04020587]
[1766939313015,0.66,124.43,124.36,8.04117079]
[1766939313827,0.66,124.42,124.35,8.04169166]
[1766939314052,0.66,124.42,124.34,8.04219696]
[1766939314334,0.66,124.4,124.32,0.1]
[1766939314504,0.66,124.4,124.32,20.20840093]
[1766939314709,0.66,124.4,124.35,8.04181479]
[1766939315421,0.66,124.4,124.34,8.04246421]
[1766939319328,0.66,124.4,124.33,20.10701612]
[1766939319529,0.66,124.4,124.33,34.78701612]
[1766939319730,103.1,124.43,124.33,35.59132722]
[1766939320034,0.66,124.42,124.34,14.68]
[1766939320351,0.66,124.42,124.35,0.80418174]
[1766939320930,14.68,124.45,124.35,0.80418174]
[1766939320931,0.66,124.44,124.35,0.80418174]
[1766939321121,0.66,124.44,124.36,14.68]
[1766939321324,0.66,124.44,124.38,8.03987779]
[1766939322239,0.612,124.44,124.39,0.05]
[1766939330637,0.612,124.44,124.4,0.05]
[1766939330842,103.1,124.48,124.4,28.13504822]
[1766939331028,0.65,124.47,124.41,0.05]
[1766939332453,0.65,124.47,124.4,28.18504822]
[1766939333132,0.65,124.47,124.4,8.0385852]
[1766939333330,0.65,124.46,124.4,8.03843469]
[1766939334224,0.65,124.46,124.4,8.08843469]
[1766939334845,0.65,124.46,124.39,8.08923144]
[1766939338436,0.65,124.46,124.4,0.05]
[1766939345743,0.65,124.46,124.41,0.05]
[1766939347326,0.65,124.46,124.41,8.08793907]
[1766939347648,0.65,124.46,124.42,0.05]
[1766939352252,0.65,124.46,124.4,0.05]
[1766939353353,0.65,124.46,124.4,8.08844501]
[1766939353553,0.65,124.46,124.4,0.05]
[1766939407514,0.69,124.44,124.38,8.08987652]
[1766939408925,0.69,124.44,124.37,8.09041987]
[1766939409406,0.69,124.44,124.37,8.04041987]
[1766939409694,0.69,124.44,124.38,0.05]
[1766939424120,8.03606649,124.44,124.36,0.05]
[1766939424423,0.72,124.43,124.36,0.05]
[1766939425202,0.72,124.41,124.35,0.05]
[1766939427124,14.68,124.41,124.35,0.05]
[1766939427326,0.72,124.4,124.35,0.05]
[1766939427727,103.1,124.42,124.35,0.05]
[1766939428031,103.82,124.42,124.35,0.05]
[1766939428330,0.72,124.42,124.35,0.05]
[1766939428710,15.4,124.44,124.36,0.05]
[1766939429108,0.72,124.43,124.36,0.05]
[1766939429828,15.4,124.44,124.37,0.80405242]
[1766939430009,14.68,124.44,124.38,0.05]
[1766939430206,103.82,124.45,124.38,0.05]
[1766939430723,103.1,124.45,124.38,0.05]
[1766939431328,103.82,124.45,124.38,0.05]
[1766939432830,103.82,124.45,124.39,0.05]
[1766939433132,0.72,124.45,124.39,0.05]
[1766939433508,0.72,124.45,124.4,0.05]
[1766939434720,0.72,124.45,124.4,8.0385852]
[1766939434911,0.72,124.45,124.41,0.05]
[1766939437331,117.78,124.48,124.41,0.05]
[1766939437553,0.72,124.47,124.41,0.05]
[1766939440140,118.5,124.48,124.41,0.05]
[1766939440345,0.72,124.47,124.41,0.05]
[1766939441528,118.5,124.48,124.41,0.05]
[1766939441839,0.72,124.48,124.41,0.05]
[1766939442148,0.72,124.48,124.43,0.05]
[1766939442853,0.72,124.48,124.44,0.05]
[1766939444327,0.72,124.5,124.44,0.05]
[1766939449438,0.72,124.5,124.45,0.05]
[1766939449821,0.66000001,124.52,124.46,0.05]
[1766939454551,0.66000001,124.52,124.45,8.08535556]
[1766939455249,0.66000001,124.52,124.45,0.05]
[1766939464355,0.66000001,124.52,124.47,0.05]
[1766939465468,0.66000001,124.52,124.48,0.05]
[1766939469364,1e-08,124.52,124.48,0.05]
[1766939469862,1e-08,124.52,124.49,0.05]
[1766939470185,1e-08,124.52,124.48,0.05]
[1766939470778,1e-08,124.52,124.48,14.68]
[1766939471076,1e-08,124.52,124.49,0.05]
[1766939471684,1e-08,124.52,124.5,0.05]
[1766939472799,1e-08,124.52,124.51,0.05]
[1766939481277,1e-08,124.52,124.5,8.83534136]
[1766939481476,1e-08,124.52,124.43,17.09516887]
[1766939481477,1e-08,124.52,124.45,0.80353555]
[1766939481661,1e-08,124.52,124.47,0.05]
[1766939481856,1e-08,124.52,124.47,8.08382918]
[1766939482263,1e-08,124.52,124.48,8.03340917]
[1766939483282,1e-08,124.52,124.47,8.08378007]
[1766939485572,1e-08,124.52,124.47,0.05]
[1766939486584,1e-08,124.52,124.45,22.76506905]
[1766939486792,1e-08,124.52,124.45,22.71506905]
[1766939487370,1e-08,124.52,124.45,8.08506905]
[1766939487774,0.71000001,124.52,124.45,0.05]
[1766939488082,0.71000001,124.52,124.44,22.76584908]
[1766939488787,0.71000001,124.52,124.44,8.08584908]
[1766939489287,0.71000001,124.52,124.45,0.05]
[1766939490185,0.71,124.51,124.43,8.08640525]
[1766939490794,0.71,124.51,124.44,0.05]
[1766939491174,0.71,124.51,124.44,0.85360012]
[1766939491376,0.71,124.51,124.46,0.05]
[1766939495502,0.71,124.51,124.46,8.08470994]
[1766939497187,0.71,124.51,124.45,22.76517839]
[1766939502076,0.71,124.51,124.46,0.05]
[1766939506077,0.71,124.51,124.45,22.71517839]
[1766939506283,0.71,124.51,124.45,8.03517839]
[1766939506491,0.71,124.51,124.44,22.76573833]
[1766939506697,0.71,124.51,124.45,8.0353398]
[1766939508614,0.71,124.51,124.45,8.0853398]
[1766939509416,0.71,124.51,124.45,8.0353398]
[1766939509598,0.71,124.51,124.46,0.05]
[1766939510297,0.71,124.51,124.45,8.0353398]
[1766939510596,0.71,124.51,124.45,8.0853398]
[1766939517521,0.71,124.51,124.45,0.05]
[1766939530607,0.7,124.5,124.43,8.08664711]
[1766939531112,0.7,124.5,124.43,0.05]
[1766939531424,0.7,124.5,124.42,8.08723008]
[1766939531813,0.7,124.48,124.42,0.05]
[1766939536337,0.67,124.47,124.4,22.76834728]
[1766939536635,0.67,124.47,124.41,0.05]
[1766939538128,8.03429248,124.47,124.39,8.03923144]
[1766939538442,0.67,124.46,124.4,0.05]
[1766939557048,0.67,124.46,124.37,14.68]
[1766939557254,0.67,124.46,124.38,0.05]
[1766939557949,0.67,124.45,124.38,0.05]
[1766939559867,0.67,124.45,124.4,0.05]
[1766939560239,0.67,124.48,124.4,0.05]
[1766939560536,0.67,124.48,124.41,0.05]
[1766939561150,0.67,124.48,124.42,0.05]
[1766939561551,0.67,124.48,124.43,0.05]
[1766939576271,14.68,124.48,124.43,0.05]
[1766939576574,0.67,124.47,124.43,0.05]
[1766939577752,0.67,124.47,124.41,0.05]
[1766939581455,111.1331857,124.49,124.41,0.05]
[1766939581456,103.77,124.49,124.41,0.05]
[1766939581964,103.77,124.49,124.42,0.05]
[1766939582560,0.67,124.48,124.42,0.05]
[1766939583477,103.1,124.49,124.43,15.48366471]
[1766939583696,0.67,124.5,124.44,0.05]
[1766939583895,14.68000001,124.52,124.45,0.05]
[1766939584195,0.67,124.51,124.45,0.05]
[1766939584981,0.67,124.51,124.46,0.05]
[1766939590198,15.35000001,124.52,124.46,0.05]
[1766939590490,0.67000001,124.52,124.47,0.05]
[1766939591088,0.67000001,124.52,124.47,8.03406443]
[1766939591395,0.67000001,124.52,124.48,0.05]
[1766939595695,1e-08,124.52,124.48,0.05]
[1766939601899,1e-08,124.52,124.47,0.05]
[1766939607099,1e-08,124.52,124.46,22.76470994]
[1766939607302,1e-08,124.52,124.46,22.71470994]
[1766939607518,1e-08,124.52,124.47,0.05]
[1766939617499,1e-08,124.52,124.48,0.05]
[1766939624321,1e-08,124.52,124.47,0.05]
[1766939625832,1e-08,124.52,124.48,0.05]
[1766939627901,1e-08,124.52,124.47,0.05]
[1766939630836,0.71000001,124.52,124.46,0.05]
[1766939631321,8.03099852,124.52,124.46,0.05]
[1766939631519,0.69,124.51,124.46,0.05]
[1766939634434,103.79,124.51,124.46,0.05]
[1766939634635,0.69,124.5,124.46,0.05]
[1766939645024,0.69,124.5,124.45,0.05]
[1766939659775,0.71,124.49,124.43,0.05]
[1766939660864,14.68,124.49,124.4,8.03832038]
[1766939661049,14.68,124.49,124.37,20.10038912]
[1766939661050,0.71,124.48,124.41,0.05]
[1766939663269,0.71,124.46,124.41,0.05]
[1766939664495,8.74473411,124.46,124.41,0.05]
[1766939664772,8.74473411,124.46,124.4,0.05]
[1766939664773,0.71,124.45,124.4,0.05]